bitfinex-derivatives/quotes_SOLF0:USTF0_20250609
["timestamp","ask_amount","ask_price","bid_price","bid_amount"]
[1749427991557,6.5539,152.51,152.49,0.04918242]
[1749427991750,5.47716024,152.53,152.49,0.04918242]
[1749427991954,0.04596207,152.53,152.49,0.04918242]
[1749427992148,6.5538,152.51,152.49,0.04918242]
[1749427992552,11.98499817,152.51,152.49,0.04918242]
[1749427992755,6.5533,152.52,152.49,0.04918242]
[1749427994155,6.5537,152.51,152.49,0.04918242]
[1749427994356,0.04596207,152.53,152.49,7.09774466]
[1749427994751,6.5536,152.51,152.49,7.09774466]
[1749427994959,0.04596207,152.53,152.49,7.09774466]
[1749427995459,0.04596207,152.53,152.49,0.04918242]
[1749427995658,5.49063375,152.53,152.49,0.04918242]
[1749427995859,0.04596207,152.53,152.49,0.04918242]
[1749427996055,5.49063375,152.53,152.49,0.04918242]
[1749427996254,0.04596207,152.53,152.49,0.04918242]
[1749427996450,5.49063375,152.53,152.49,0.04918242]
[1749427996759,6.5541,152.5,152.49,0.04918242]
[1749427997262,6.5555,152.47,152.44,33.72]
[1749427997460,5.44467168,152.5,152.44,33.72]
[1749427998059,6.5552,152.48,152.44,40.2766]
[1749427998362,0.04274408,152.48,152.44,33.76366657]
[1749427998563,6.5554,152.47,152.44,33.76366657]
[1749427999156,6.59784408,152.48,152.44,40.32026657]
[1749427999462,0.04274408,152.48,152.44,33.76366657]
[1749427999960,0.04274408,152.48,152.45,6.5561]
[1749428000464,6.59774408,152.48,152.45,6.5561]
[1749428000663,0.04274408,152.48,152.44,40.32016657]
[1749428001063,0.04274408,152.48,152.45,7.04856224]
[1749428001954,0.04274408,152.48,152.46,6.5555]
[1749428003162,0.04274408,152.48,152.44,33.76366657]
[1749428003766,6.556,152.46,152.44,33.76366657]
[1749428003969,0.04274408,152.48,152.44,0.04366657]
[1749428004158,5.48741576,152.48,152.44,0.04366657]
[1749428004356,39.20741576,152.48,152.44,0.04366657]
[1749428004667,6.5562,152.45,152.44,0.04366657]
[1749428007067,6.5577,152.42,152.39,40.2787]
[1749428007265,5.44467168,152.44,152.39,40.2787]
[1749428007463,6.5572,152.43,152.39,40.2787]
[1749428007972,12.04506301,152.43,152.39,40.32908593]
[1749428008263,0.04708287,152.43,152.39,33.77038593]
[1749428009065,6.5578,152.42,152.39,40.32908593]
[1749428009667,6.558,152.41,152.39,33.77038593]
[1749428010162,0.04708287,152.43,152.39,33.77038593]
[1749428010767,5.48848863,152.43,152.39,0.05038593]
[1749428010968,5.44140576,152.42,152.39,0.05038593]
[1749428011263,6.5584,152.4,152.39,0.05038593]
[1749428012670,11.99950576,152.41,152.39,0.05038593]
[1749428013364,6.5581,152.41,152.39,0.05038593]
[1749428013767,6.5584,152.4,152.39,0.05038593]
[1749428014569,5.43433198,152.42,152.39,0.05038593]
[1749428014762,5.48141485,152.43,152.39,4.27818806]
[1749428014966,0.04708287,152.43,152.42,6.5575]
[1749428016371,0.04708287,152.43,152.4,33.72]
[1749428016769,6.5584,152.4,152.39,0.05038593]
[1749428017971,5.43537176,152.41,152.39,0.05038593]
[1749428018376,5.43537176,152.42,152.39,0.05038593]
[1749428018577,6.5584,152.4,152.39,0.05038593]
[1749428022471,5.43537176,152.41,152.39,0.05038593]
[1749428022980,11.99367176,152.41,152.39,0.05038593]
[1749428025778,5.43537176,152.41,152.4,6.5584]
[1749428025980,0.04708287,152.43,152.39,7.09701154]
[1749428026474,0.04708287,152.43,152.4,6.5583]
[1749428026677,0.04708287,152.43,152.39,7.09701154]
[1749428026678,0.04708287,152.43,152.39,0.05038593]
[1749428026878,12.46820254,152.42,152.39,0.05038593]
[1749428027078,6.5584,152.4,152.39,0.05038593]
[1749428027481,5.42157693,152.41,152.39,0.05038593]
[1749428027681,5.4686598,152.43,152.39,0.05038593]
[1749428028488,6.5582,152.41,152.39,0.05038593]
[1749428029172,6.5584,152.4,152.39,0.05038593]
[1749428034580,7.04662561,152.4,152.32,33.72]
[1749428034786,5.42157693,152.39,152.32,33.72]
[1749428034984,5.42157693,152.39,152.28,6.6724]
[1749428034985,7.04662561,152.38,152.28,6.6724]
[1749428035285,39.14157693,152.37,152.28,40.3924]
[1749428035484,5.42157693,152.36,152.29,7.04662561]
[1749428035787,0.04800554,152.34,152.31,0.04871483]
[1749428037487,5.46958247,152.34,152.31,0.04871483]
[1749428038188,5.46958247,152.34,152.31,6.61091483]
[1749428038380,5.46958247,152.34,152.31,0.04871483]
[1749428038786,0.04800554,152.34,152.31,0.04871483]
[1749428039183,6.60910554,152.34,152.31,0.04871483]
[1749428039789,6.60910554,152.34,152.31,6.61081483]
[1749428042188,6.5615,152.33,152.31,0.04871483]
[1749428042393,43.37737227,152.33,152.24,33.74]
[1749428042591,43.37737227,152.33,152.21,4.23167997]
[1749428042592,4.23167997,152.3,152.21,4.23167997]
[1749428042797,4.23167997,152.28,152.21,37.97167997]
[1749428043189,9.63737227,152.28,152.21,37.97167997]
[1749428043489,0.04729436,152.26,152.23,0.04153471]
[1749428043694,0.04729436,152.26,152.23,4.27321468]
[1749428043898,0.04729436,152.26,152.24,6.5649]
[1749428044494,0.04729436,152.26,152.23,4.27321468]
[1749428044495,0.04729436,152.26,152.25,6.5648]
[1749428045498,0.04729436,152.26,152.24,6.5651]
[1749428045798,0.04729436,152.26,152.23,4.27321468]
[1749428046292,0.04729436,152.26,152.25,6.5648]
[1749428046486,33.74,152.31,152.25,4.23167997]
[1749428046692,5.41150768,152.3,152.25,4.23167997]
[1749428047094,6.5623,152.31,152.25,37.97167997]
[1749428047296,6.5623,152.31,152.27,6.5636]
[1749428047497,11.9626439,152.31,152.27,6.5636]
[1749428047794,11.9626439,152.31,152.3,6.5627]
[1749428047795,0.04852961,152.31,152.3,6.5627]
[1749428048091,0.04852961,152.31,152.29,33.74]
[1749428048293,6.61082961,152.31,152.29,33.74]
[1749428048592,0.04852961,152.31,152.27,6.6089121]
[1749428048798,6.61102961,152.31,152.27,6.6089121]
[1749428050196,6.5627,152.3,152.27,6.6089121]
[1749428050499,0.04852961,152.31,152.3,6.5627]
[1749428050791,0.04852961,152.31,152.29,4.23167997]
[1749428050999,0.04852961,152.31,152.27,4.27689207]
[1749428051297,6.61122961,152.31,152.27,4.27689207]
[1749428051497,6.61122961,152.31,152.27,10.84069207]
[1749428052495,0.04852961,152.31,152.27,0.0452121]
[1749428053200,6.5635,152.28,152.27,0.0452121]
[1749428058406,0.04852961,152.31,152.27,0.0452121]
[1749428058602,0.04852961,152.31,152.28,6.5635]
[1749428058902,0.04852961,152.31,152.27,33.7852121]
[1749428059204,0.04852961,152.31,152.28,6.5633]
[1749428060393,6.61102961,152.31,152.27,40.3490121]
[1749428061299,0.04852961,152.31,152.27,33.7852121]
[1749428061499,4.23167997,152.3,152.27,0.0452121]
[1749428062101,6.5635,152.28,152.27,0.0452121]
[1749428063594,4.23167997,152.28,152.22,33.74]
[1749428063903,9.63304697,152.28,152.22,33.74]
[1749428064095,6.5647,152.26,152.22,40.3061]
[1749428064298,4.23167997,152.28,152.22,40.3061]
[1749428064494,4.23167997,152.28,152.22,33.74]
[1749428064800,5.40180121,152.29,152.23,0.04732174]
[1749428064801,4.23167997,152.26,152.23,0.04732174]
[1749428065300,6.5653,152.24,152.23,0.04732174]
[1749428068302,6.565,152.25,152.23,0.04732174]
[1749428069306,6.5645,152.26,152.23,0.04732174]
[1749428069502,0.041831,152.27,152.23,0.04732174]
[1749428069802,0.041831,152.27,152.25,6.5648]
[1749428071510,6.606031,152.27,152.24,37.97167997]
[1749428072503,6.5644,152.26,152.24,37.97167997]
[1749428074010,6.605931,152.27,152.24,44.53677997]
[1749428074304,11.99040143,152.27,152.24,44.53677997]
[1749428074507,6.605931,152.27,152.24,44.53677997]
[1749428074907,0.041831,152.27,152.24,37.97167997]
[1749428075108,0.041831,152.27,152.26,4.23167997]
[1749428077520,0.041831,152.27,152.24,44.56797997]
[1749428078707,0.041831,152.27,152.26,6.5644]
[1749428079113,5.46279683,152.27,152.24,44.56797997]
[1749428079313,0.041831,152.27,152.24,51.13297997]
[1749428079508,6.605831,152.27,152.24,51.13297997]
[1749428080007,12.02679683,152.27,152.24,44.56797997]
[1749428080207,0.041831,152.27,152.24,33.74]
[1749428080407,5.42007651,152.26,152.24,33.74]
[1749428080614,5.42007651,152.25,152.24,33.74]
[1749428080814,5.42007651,152.26,152.24,33.74]
[1749428081013,5.42007651,152.25,152.24,33.74]
[1749428081312,5.42007651,152.26,152.24,33.74]
[1749428081504,0.041831,152.27,152.24,37.97167997]
[1749428081710,5.42127417,152.26,152.24,37.97167997]
[1749428081905,0.041831,152.27,152.24,37.97167997]
[1749428082307,0.041831,152.27,152.25,6.5648]
[1749428083111,5.42249975,152.26,152.25,6.5648]
[1749428088816,5.42249975,152.26,152.24,44.53677997]
[1749428089011,6.605931,152.27,152.24,44.53677997]
[1749428089210,5.42350532,152.26,152.24,44.53677997]
[1749428089409,6.605931,152.27,152.24,44.53677997]
[1749428089616,5.42373236,152.26,152.24,44.53677997]
[1749428089808,6.605931,152.27,152.24,44.53677997]
[1749428090008,5.42228917,152.26,152.24,44.53677997]
[1749428090317,6.605931,152.27,152.25,6.5648]
[1749428090518,5.42209198,152.26,152.25,6.5648]
[1749428093222,0.041831,152.27,152.26,6.5644]
[1749428093421,5.46596092,152.27,152.26,6.5644]
[1749428094118,5.46596092,152.27,152.24,44.52097997]
[1749428094323,0.041831,152.27,152.24,42.22317997]
[1749428094523,5.42224517,152.26,152.24,42.22317997]
[1749428094718,5.42224517,152.25,152.24,37.9915]
[1749428094924,5.42224517,152.25,152.24,44.5568]
[1749428097720,5.42224517,152.25,152.24,40.3053]
[1749428100028,0.041831,152.27,152.24,37.97167997]
[1749428100230,6.09891195,152.31,152.26,4.23167997]
[1749428100425,5.4237015,152.3,152.29,6.5629]
[1749428100620,5.4237015,152.3,152.28,37.97167997]
[1749428100828,11.9868015,152.29,152.28,33.74]
[1749428101026,5.4237015,152.29,152.2,2.1256]
[1749428101327,6.5655,152.24,152.23,0.04274709]
[1749428101522,5.4237015,152.24,152.23,0.04274709]
[1749428102125,5.4237015,152.24,152.23,6.60844709]
[1749428102623,0.04612433,152.26,152.23,0.04274709]
[1749428102822,0.04612433,152.26,152.25,4.23167997]
[1749428103130,0.04612433,152.26,152.25,37.97167997]
[1749428103326,6.09891195,152.31,152.27,4.23167997]
[1749428103626,5.42484926,152.3,152.29,4.23167997]
[1749428104130,5.42484926,152.3,152.29,44.53477997]
[1749428104629,5.42484926,152.3,152.29,37.97167997]
[1749428104832,5.42484926,152.3,152.29,33.74]
[1749428105731,5.42484926,152.3,152.29,40.3031]
[1749428106133,5.42484926,152.3,152.29,44.53477997]
[1749428107231,0.05047438,152.31,152.29,37.97167997]
[1749428107827,0.05047438,152.31,152.3,6.5627]
[1749428108928,0.05047438,152.31,152.29,33.74]
[1749428109131,0.05047438,152.31,152.28,0.04579646]
[1749428109326,6.61307438,152.31,152.28,0.04579646]
[1749428109529,0.05047438,152.31,152.28,0.04579646]
[1749428109724,4.28215435,152.31,152.28,0.04579646]
[1749428109926,10.3810663,152.31,152.28,0.04579646]
[1749428110836,6.09891195,152.3,152.23,33.7]
[1749428111136,8.26281195,152.3,152.23,33.7]
[1749428111336,4.23167997,152.29,152.23,33.7]
[1749428111635,4.23167997,152.27,152.23,33.7]
[1749428111828,6.5653,152.24,152.23,0.04594155]
[1749428112033,6.14143955,152.27,152.23,0.04594155]
[1749428112237,0.0425276,152.27,152.23,0.04594155]
[1749428113837,6.14143955,152.27,152.23,0.04594155]
[1749428114138,6.5653,152.24,152.23,0.04594155]
[1749428116535,6.565,152.25,152.23,0.04594155]
[1749428116742,6.14143955,152.27,152.23,6.61134155]
[1749428116935,0.0425276,152.27,152.23,0.04594155]
[1749428117242,0.0425276,152.27,152.25,6.5646]
[1749428117735,0.0425276,152.27,152.23,0.04594155]
[1749428117936,0.0425276,152.27,152.24,37.95167997]
[1749428118328,0.0425276,152.27,152.26,6.5644]
[1749428118731,0.0425276,152.27,152.24,40.2852]
[1749428119436,5.36132733,152.26,152.24,40.2852]
[1749428119745,5.3647109,152.25,152.24,40.2852]
[1749428119942,0.0425276,152.27,152.24,37.95167997]
[1749428120142,0.0425276,152.27,152.26,4.23167997]
[1749428120342,0.0425276,152.27,152.26,10.79607997]
[1749428120943,0.0425276,152.27,152.26,4.23167997]
[1749428121841,5.40766603,152.27,152.26,4.23167997]
[1749428122033,0.0425276,152.27,152.26,10.79607997]
[1749428126842,0.0425276,152.27,152.25,6.5647]
[1749428127139,0.0425276,152.27,152.25,10.79637997]
[1749428127738,0.0425276,152.27,152.24,40.2851]
[1749428127940,5.37320962,152.26,152.24,33.72]
[1749428128141,5.3721461,152.25,152.24,33.72]
[1749428128347,6.5653,152.24,152.23,0.04594155]
[1749428128540,11.9374461,152.24,152.23,0.04594155]
[1749428128738,6.5653,152.24,152.23,0.04594155]
[1749428129253,11.9374461,152.24,152.23,0.04594155]
[1749428130550,9.60382607,152.24,152.2,33.72]
[1749428130746,5.3721461,152.23,152.2,33.72]
[1749428131046,6.5669,152.21,152.18,4.23167997]
[1749428131247,11.9390461,152.21,152.18,4.23167997]
[1749428131444,0.04323729,152.21,152.19,6.5674]
[1749428131650,0.04323729,152.21,152.18,0.04392577]
[1749428132050,5.36639749,152.2,152.18,0.04392577]
[1749428132452,5.40963478,152.21,152.18,0.04392577]
[1749428132750,11.97643478,152.21,152.18,6.61162577]
[1749428133054,5.36639749,152.2,152.18,6.61162577]
[1749428133552,6.61003729,152.21,152.18,6.61162577]
[1749428133751,0.04323729,152.21,152.18,0.04392577]
[1749428134050,9.57322773,152.2,152.16,33.72]
[1749428134353,0.04323729,152.21,152.16,37.95167997]
[1749428134553,0.04323729,152.21,152.18,4.23167997]
[1749428134752,0.04323729,152.21,152.2,4.23167997]
[1749428134951,0.04323729,152.21,152.2,10.79867997]
[1749428135152,0.04323729,152.21,152.2,44.51867997]
[1749428135552,3.729e-05,152.21,152.2,44.51867997]
[1749428137753,3.729e-05,152.21,152.2,40.287]
[1749428138050,3.729e-05,152.21,152.2,44.51867997]
[1749428142048,3.729e-05,152.21,152.2,51.09867997]
[1749428142261,3.729e-05,152.21,152.2,55.33035994]
[1749428144255,3.729e-05,152.21,152.2,117.33035994]
[1749428146958,3.729e-05,152.21,152.2,51.09867997]
[1749428147159,3.729e-05,152.21,152.2,55.33035994]
[1749428149858,3.729e-05,152.21,152.2,117.33035994]
[1749428153457,4.5701,152.37,152.35,6.5605]
[1749428153655,2.2785,152.37,152.35,4.23167997]
[1749428154766,2.2785,152.37,152.36,6.5601]
[1749428155665,0.05039203,152.38,152.37,6.5597]
[1749428155860,0.05039203,152.38,152.37,44.49137997]
[1749428156365,7.59231303,152.42,152.41,6.5579]
[1749428156664,7.59231303,152.42,152.41,40.2379]
[1749428156665,2.1827,152.42,152.41,40.2379]
[1749428157371,2.1261,152.46,152.43,6.5571]
[1749428157559,2.16884889,152.46,152.44,4.23167997]
[1749428157866,0.04274889,152.46,152.44,4.23167997]
[1749428158067,0.04274889,152.46,152.45,33.68]
[1749428158566,0.04274889,152.46,152.43,0.04993835]
[1749428158766,6.5565,152.45,152.43,0.04993835]
[1749428159069,0.04274889,152.46,152.41,37.91167997]
[1749428160059,6.59864889,152.46,152.42,6.60458378]
[1749428160259,0.04274889,152.46,152.42,0.04738378]
[1749428161760,6.5565,152.45,152.42,6.60478378]
[1749428162471,6.5567,152.44,152.42,0.04738378]
[1749428162872,0.04274889,152.46,152.42,0.04738378]
[1749428163073,0.04274889,152.46,152.45,4.23167997]
[1749428163274,0.04274889,152.46,152.45,44.46787997]
[1749428163473,0.04274889,152.46,152.45,37.91167997]
[1749428166275,6.59854889,152.46,152.45,33.68]
[1749428166471,0.04274889,152.46,152.42,33.72738378]
[1749428166671,6.5581,152.41,152.39,33.68]
[1749428166876,4.23167997,152.44,152.39,33.68]
[1749428167276,6.5578,152.42,152.39,33.68]
[1749428167579,6.6042175,152.42,152.39,33.68]
[1749428167881,6.5581,152.41,152.39,33.68]
[1749428168277,6.5581,152.41,152.39,26.7456]
[1749428168278,8.7496,152.41,152.39,26.7456]
[1749428168780,2.1915,152.41,152.39,26.7456]
[1749428169584,8.7494,152.41,152.39,26.7456]
[1749428169786,0.0464175,152.42,152.39,30.97727997]
[1749428169977,0.0464175,152.42,152.41,4.23167997]
[1749428170177,2.2947,152.48,152.41,4.23167997]
[1749428170383,2.2947,152.48,152.4,4.23167997]
[1749428170384,2.1725,152.51,152.47,4.23167997]
[1749428170879,2.1725,152.51,152.48,6.5547]
[1749428171082,2.22238567,152.51,152.48,6.60317238]
[1749428171688,2.22238567,152.51,152.48,0.04847238]
[1749428173589,2.22238567,152.51,152.48,6.60317238]
[1749428173883,2.22238567,152.51,152.48,0.04847238]
[1749428174588,6.5545,152.49,152.48,0.04847238]
[1749428174784,12.42981037,152.5,152.4,7.0356262]
[1749428174985,9.3390262,152.48,152.41,33.66]
[1749428175190,9.3390262,152.48,152.4,33.66]
[1749428175191,2.1088,152.47,152.4,33.66]
[1749428175587,7.0356262,152.44,152.4,23.2647]
[1749428175886,7.0356262,152.44,152.37,411.74]
[1749428175887,6.5583,152.41,152.37,411.74]
[1749428176283,7.07998126,152.44,152.36,33.66]
[1749428176991,40.73998126,152.44,152.36,33.66]
[1749428177188,6.558,152.41,152.36,33.66]
[1749428177383,0.04666278,152.4,152.37,6.5596]
[1749428177987,6.60506278,152.4,152.37,6.5596]
[1749428178291,0.04666278,152.4,152.36,33.66]
[1749428178797,0.04666278,152.4,152.37,6.5596]
[1749428179487,0.04666278,152.4,152.39,6.5588]
[1749428179791,0.04666278,152.4,152.39,13.5944262]
[1749428180894,0.04666278,152.4,152.39,6.5588]
[1749428181691,0.04666278,152.4,152.39,13.5944262]
[1749428182096,2.3034,152.48,152.45,6.5561]
[1749428182994,2.3483308,152.48,152.46,6.5557]
[1749428183295,2.3483308,152.48,152.45,0.04683667]
[1749428183497,2.3483308,152.48,152.45,6.60273667]
[1749428184095,2.3483308,152.48,152.47,6.5554]
[1749428184297,0.0449308,152.48,152.47,6.5554]
[1749428184498,0.0449308,152.48,152.45,0.04683667]
[1749428185295,5.44444494,152.48,152.45,0.04683667]
[1749428185498,7.0356262,152.46,152.4,33.66]
[1749428185699,7.56201414,152.45,152.4,33.66]
[1749428186197,6.5574,152.43,152.4,33.66]
[1749428186501,6.60340668,152.43,152.4,33.66]
[1749428186701,6.60340668,152.43,152.4,40.2182]
[1749428187797,6.5576,152.42,152.4,33.66]
[1749428187992,0.04600668,152.43,152.4,33.66]
[1749428188200,5.44552082,152.43,152.37,33.66]
[1749428188505,6.559,152.39,152.37,33.66]
[1749428189199,6.5592,152.38,152.37,33.66]
[1749428189503,5.41434418,152.39,152.34,33.66]
[1749428189702,0.04795562,152.4,152.35,40.2202]
[1749428190001,0.04795562,152.4,152.35,33.66]
[1749428190704,6.5596,152.38,152.35,40.2204]
[1749428191004,5.41434418,152.39,152.35,40.2204]
[1749428191195,0.04795562,152.4,152.35,33.66]
[1749428191398,0.04795562,152.4,152.36,7.0356262]
[1749428191993,0.04795562,152.4,152.37,6.5596]
[1749428192197,0.04795562,152.4,152.36,7.0356262]
[1749428193008,0.04795562,152.4,152.38,7.0356262]
[1749428193200,5.41434418,152.44,152.39,33.66]
[1749428193401,5.41434418,152.45,152.41,7.0356262]
[1749428193593,5.41434418,152.46,152.43,7.0356262]
[1749428193801,5.41434418,152.46,152.43,40.6956262]
[1749428194003,6.5555,152.47,152.43,40.6956262]
[1749428194308,5.45832179,152.47,152.43,33.70348834]
[1749428194502,5.41434418,152.46,152.43,33.70348834]
[1749428194904,0.04397761,152.47,152.43,0.04348834]
[1749428194905,6.5566,152.44,152.43,0.04348834]
[1749428195505,11.97094418,152.44,152.43,0.04348834]
[1749428196006,6.5566,152.44,152.43,0.04348834]
[1749428196408,11.97094418,152.44,152.43,0.04348834]
[1749428196605,6.5566,152.44,152.43,0.04348834]
[1749428196813,11.97094418,152.44,152.43,0.04348834]
[1749428197002,5.41434418,152.46,152.43,6.60018834]
[1749428197310,5.41287991,152.46,152.43,6.60018834]
[1749428197503,0.04397761,152.47,152.43,6.60018834]
[1749428197504,5.41287991,152.45,152.43,6.60018834]
[1749428197702,5.41287991,152.46,152.43,7.07911454]
[1749428197908,0.04397761,152.47,152.44,33.66]
[1749428198105,5.45685752,152.47,152.44,33.66]
[1749428198310,0.04397761,152.47,152.44,33.66]
[1749428198506,5.41287991,152.46,152.45,13.5918262]
[1749428198705,6.05171312,152.51,152.45,7.0356262]
[1749428198914,6.05171312,152.52,152.48,7.0356262]
[1749428199102,6.05171312,152.52,152.48,47.2504262]
[1749428199506,12.60521312,152.52,152.48,40.6956262]
[1749428199704,6.59693478,152.52,152.48,40.74430262]
[1749428199909,6.59693478,152.52,152.48,47.29900262]
[1749428200910,0.04343478,152.52,152.48,33.70867642]
[1749428201209,0.04343478,152.52,152.48,0.04867642]
[1749428201210,6.05171312,152.51,152.48,0.04867642]
[1749428201410,6.5545,152.49,152.48,0.04867642]
[1749428205912,6.5541,152.5,152.48,0.04867642]
[1749428206114,6.0951479,152.52,152.48,0.04867642]
[1749428206611,6.5543,152.5,152.48,0.04867642]
[1749428207012,6.0951479,152.52,152.48,0.04867642]
[1749428208122,6.5545,152.49,152.48,0.04867642]
[1749428210712,6.557,152.44,152.42,33.82]
[1749428210908,12.47859027,152.49,152.36,7.0356262]
[1749428210909,7.0356262,152.47,152.36,7.0356262]
[1749428211109,11.49467719,152.46,152.37,33.82]
[1749428211308,5.44296407,152.45,152.37,33.82]
[1749428211511,5.44296407,152.44,152.37,33.82]
[1749428211812,0.04525902,152.42,152.39,0.04448173]
[1749428212911,6.5582,152.41,152.39,0.04448173]
[1749428213118,5.44296407,152.41,152.39,0.04448173]
[1749428213318,0.04525902,152.42,152.39,0.04448173]
[1749428213517,6.5579,152.41,152.39,0.04448173]
[1749428213716,12.00086407,152.41,152.39,0.04448173]
[1749428214218,6.5584,152.4,152.39,0.04448173]
[1749428214614,5.44296407,152.4,152.34,4.2722]
[1749428214817,7.0356262,152.39,152.34,4.2722]
[1749428215121,5.44296407,152.38,152.33,33.82]
[1749428215618,0.04143949,152.37,152.33,33.82]
[1749428215815,6.5603,152.36,152.33,33.82]
[1749428216220,12.00326407,152.36,152.33,33.82]
[1749428216520,5.44296407,152.36,152.34,6.5609]
[1749428216714,6.60123949,152.37,152.34,6.5609]
[1749428216910,6.60123949,152.37,152.33,40.3812]
[1749428217414,7.07706569,152.37,152.28,4.5368]
[1749428217616,7.0356262,152.35,152.28,38.3568]
[1749428217815,7.07866926,152.33,152.28,33.82]
[1749428218026,6.5623,152.31,152.28,33.82]
[1749428218417,5.42509356,152.32,152.28,33.82]
[1749428218613,6.60464306,152.33,152.29,6.5628]
[1749428218821,0.04304306,152.33,152.29,6.5628]
[1749428219327,0.04304306,152.33,152.28,33.82]
[1749428219511,0.04304306,152.33,152.28,38.3005]
[1749428220019,0.04304306,152.33,152.3,6.5624]
[1749428220821,0.04304306,152.33,152.28,38.3005]
[1749428221014,0.04304306,152.33,152.29,7.0356262]
[1749428221210,5.42509356,152.36,152.31,7.0356262]
[1749428221414,5.42509356,152.36,152.28,38.3005]
[1749428221415,6.5595,152.38,152.33,7.0356262]
[1749428221619,5.42509356,152.39,152.35,7.0356262]
[1749428221923,6.5586,152.4,152.35,7.0356262]
[1749428222121,6.5586,152.4,152.36,0.04624672]
[1749428222122,0.04931158,152.39,152.36,0.04624672]
[1749428222323,0.04931158,152.39,152.36,6.60604672]
[1749428222825,6.05171312,152.46,152.37,40.8756262]
[1749428223025,5.40995116,152.46,152.42,7.0356262]
[1749428223324,5.40995116,152.46,152.4,7.0356262]
[1749428223526,5.40995116,152.46,152.41,33.84]
[1749428223723,0.04140421,152.45,152.42,7.08277331]
[1749428223930,0.04140421,152.45,152.43,6.5569]
[1749428224431,6.5546,152.49,152.44,7.0356262]
[1749428224623,5.41288877,152.49,152.44,7.0356262]
[1749428225125,6.5551,152.48,152.44,7.0356262]
[1749428225327,6.5551,152.48,152.44,13.5922262]
[1749428225524,0.04614108,152.48,152.44,7.08441092]
[1749428225725,0.04614108,152.48,152.45,33.82]
[1749428225922,0.04614108,152.48,152.44,0.04878472]
[1749428226828,6.5562,152.45,152.44,0.04878472]
[1749428228529,6.5559,152.46,152.44,0.04878472]
[1749428228923,6.5562,152.45,152.44,0.04878472]
[1749428229222,6.5562,152.45,152.44,8.472e-05]
[1749428229428,6.5562,152.45,152.38,33.82]
[1749428229429,11.46460189,152.45,152.38,33.82]
[1749428229627,45.28460189,152.45,152.38,33.82]
[1749428229827,5.41288877,152.44,152.38,33.82]
[1749428230232,6.5585,152.4,152.38,33.82]
[1749428230431,6.5585,152.4,152.39,0.04239064]
[1749428232037,6.558,152.41,152.39,0.04239064]
[1749428232236,5.45832304,152.43,152.39,7.07801684]
[1749428232531,0.04543427,152.43,152.41,7.0356262]
[1749428233836,0.04543427,152.43,152.41,13.5932262]
[1749428234432,0.04543427,152.43,152.41,7.0356262]
[1749428234833,0.04543427,152.43,152.4,4.5182]
[1749428235533,6.60263427,152.43,152.4,4.5182]
[1749428235732,0.04543427,152.43,152.4,4.5182]
[1749428236535,0.04543427,152.43,152.4,11.0763]
[1749428237533,0.04543427,152.43,152.41,7.0356262]
[1749428237834,42.10781312,152.51,152.41,7.0356262]
[1749428238031,5.44029432,152.5,152.44,7.0356262]
[1749428238232,11.49200744,152.49,152.43,33.88]
[1749428238429,5.44029432,152.48,152.43,33.88]
[1749428238637,0.0424838,152.47,152.44,0.04549187]
[1749428240640,6.556,152.46,152.44,0.04549187]
[1749428241039,0.0424838,152.47,152.44,0.04549187]
[1749428242439,6.5558,152.46,152.44,0.04549187]
[1749428243337,0.0424838,152.47,152.44,0.04549187]
[1749428243541,0.0424838,152.47,152.44,7.08111807]
[1749428243844,0.0424838,152.47,152.46,6.5558]
[1749428244039,5.44029432,152.5,152.46,7.0356262]
[1749428244342,5.44029432,152.53,152.47,33.88]
[1749428245136,0.04190958,152.52,152.48,0.05022613]
[1749428245332,0.04190958,152.52,152.5,7.0356262]
[1749428245533,5.44029432,152.56,152.53,6.5524]
[1749428246134,6.5517,152.56,152.53,6.5524]
[1749428246335,11.99199432,152.56,152.53,6.5524]
[1749428246535,5.44029432,152.55,152.53,6.60244816]
[1749428246735,0.04575531,152.56,152.53,6.60244816]
[1749428247339,0.04575531,152.56,152.54,7.0356262]
[1749428247542,6.05171312,152.61,152.55,33.86]
[1749428247736,5.47026014,152.63,152.59,7.0356262]
[1749428247936,5.47026014,152.64,152.61,7.0356262]
[1749428248142,5.47026014,152.66,152.59,40.8956262]
[1749428248441,7.0356262,152.65,152.54,7.0356262]
[1749428248742,0.04530549,152.61,152.58,0.04753645]
[1749428249138,6.5502,152.59,152.58,0.04753645]
[1749428250136,6.5499,152.6,152.58,0.04753645]
[1749428250339,0.04530549,152.61,152.58,0.04753645]
[1749428250844,6.59480549,152.61,152.58,0.04753645]